bitfinex-derivatives/quotes_SOLF0:USTF0_20250216
["timestamp","ask_amount","ask_price","bid_price","bid_amount"]
[1739731721612,5.2723,189.64,189.63,0.03467756]
[1739731722415,5.2729,189.62,189.59,6.9254659]
[1739731722911,6.9254659,189.63,189.57,6.9254659]
[1739731723114,6.9254659,189.63,189.48,118.38]
[1739731723115,6.9254659,189.63,189.55,6.9254659]
[1739731723506,6.9593737,189.61,189.57,0.03475728]
[1739731724308,5.274,189.58,189.57,0.03475728]
[1739731725511,6.9593737,189.61,189.57,0.03475728]
[1739731726210,5.2739,189.59,189.57,0.03475728]
[1739731726615,6.9593737,189.61,189.57,0.03475728]
[1739731727314,0.0339078,189.61,189.57,6.96022318]
[1739731728111,0.0339078,189.61,189.59,6.9254659]
[1739731728518,0.0339078,189.61,189.6,5.2734]
[1739731729318,0.0339078,189.61,189.59,6.9254659]
[1739731731920,5.3071078,189.61,189.59,6.9254659]
[1739731732121,0.0339078,189.61,189.57,6.96022318]
[1739731732523,5.3071078,189.61,189.57,6.96022318]
[1739731733121,5.2736,189.6,189.57,6.96022318]
[1739731733618,0.0339078,189.61,189.57,6.96022318]
[1739731733820,5.3071078,189.61,189.57,6.96022318]
[1739731734020,0.0339078,189.61,189.57,6.96022318]
[1739731734421,0.0339078,189.61,189.57,12.23442318]
[1739731734622,0.0339078,189.61,189.59,6.9254659]
[1739731735326,0.0339078,189.61,189.59,12.1991659]
[1739731737124,0.0339078,189.61,189.59,6.9254659]
[1739731743026,0.0339078,189.61,189.59,12.1990659]
[1739731743925,0.0339078,189.61,189.59,6.9254659]
[1739731745028,6.3528,189.66,189.59,6.9254659]
[1739731745225,5.2713,189.68,189.64,6.9254659]
[1739731745529,9.909,189.72,189.67,6.9254659]
[1739731745827,5.2709,189.7,189.67,6.9254659]
[1739731746028,9.909,189.72,189.67,6.9254659]
[1739731746223,0.03637167,189.7,189.67,6.96225159]
[1739731746624,0.03637167,189.7,189.69,6.9254659]
[1739731748325,0.03637167,189.7,189.69,12.1963659]
[1739731748929,57.84418794,189.76,189.69,6.9254659]
[1739731749129,57.84418794,189.76,189.74,6.9254659]
[1739731750431,0.03912177,189.77,189.74,6.9254659]
[1739731753839,0.03912177,189.77,189.73,0.03548769]
[1739731754229,5.2696,189.74,189.73,0.03548769]
[1739731754429,6.96458767,189.77,189.68,6.9254659]
[1739731754430,6.9254659,189.75,189.68,6.9254659]
[1739731754935,3.0918,189.76,189.63,118.28]
[1739731754936,6.9254659,189.71,189.64,6.9254659]
[1739731755231,3.0783,189.7,189.64,6.9254659]
[1739731755428,6.9254659,189.69,189.62,6.9254659]
[1739731755630,6.96131985,189.69,189.65,0.03360487]
[1739731755836,5.2718,189.66,189.65,0.03360487]
[1739731758635,5.2727,189.63,189.59,10.81008848]
[1739731759228,5.2715,189.67,189.6,5.2734]
[1739731759534,3.0918,189.68,189.59,10.81008848]
[1739731759737,3.184,189.67,189.56,10.81008848]
[1739731760040,0.0404469,189.65,189.61,0.03725299]
[1739731760226,5.2729,189.62,189.61,0.03725299]
[1739731760431,0.0404469,189.65,189.61,0.03725299]
[1739731762134,5.2728,189.63,189.61,0.03725299]
[1739731762329,0.0404469,189.65,189.61,0.03725299]
[1739731762534,5.2726,189.64,189.61,0.03725299]
[1739731762931,0.0404469,189.65,189.61,0.03725299]
[1739731763132,5.2729,189.63,189.61,0.03725299]
[1739731763334,0.0404469,189.65,189.61,0.03725299]
[1739731763731,5.2729,189.62,189.61,0.03725299]
[1739731763937,0.0404469,189.65,189.54,10.81008848]
[1739731764139,3.2963,189.61,189.54,10.81008848]
[1739731764943,5.2743,189.57,189.54,10.81008848]
[1739731765243,0.03754254,189.59,189.54,10.81008848]
[1739731766044,5.31134254,189.59,189.54,10.81008848]
[1739731766239,0.03754254,189.59,189.54,10.81008848]
[1739731768148,0.03754254,189.59,189.57,5.2743]
[1739731768444,0.03754254,189.59,189.58,5.274]
[1739731768840,0.03754254,189.59,189.54,10.81008848]
[1739731769644,0.03754254,189.59,189.58,16.08408848]
[1739731770646,251.84418794,189.73,189.61,10.81008848]
[1739731770843,258.20148794,189.73,189.61,10.81008848]
[1739731771438,5.2716,189.67,189.61,10.81008848]
[1739731771637,5.2716,189.67,189.65,0.04035478]
[1739731772441,5.2713,189.68,189.65,0.04035478]
[1739731773235,0.03668595,189.69,189.65,0.04035478]
[1739731773437,5.30768595,189.69,189.65,0.04035478]
[1739731774746,0.03668595,189.69,189.65,0.04035478]
[1739731775848,5.2714,189.68,189.65,0.04035478]
[1739731776345,0.03668595,189.69,189.65,0.04035478]
[1739731776546,5.2718,189.66,189.65,0.04035478]
[1739731776846,0.03668595,189.69,189.65,0.04035478]
[1739731777242,5.2718,189.66,189.65,0.04035478]
[1739731778540,0.03668595,189.69,189.65,0.04035478]
[1739731778844,0.03668595,189.69,189.66,6.91779861]
[1739731779647,5.30768595,189.69,189.66,6.91779861]
[1739731780643,0.03668595,189.69,189.65,0.04035478]
[1739731781850,5.2713,189.68,189.65,0.04035478]
[1739731782251,0.03668595,189.69,189.65,0.04035478]
[1739731784347,5.2716,189.67,189.65,0.04035478]
[1739731784952,5.30788595,189.69,189.65,0.04035478]
[1739731786753,0.03668595,189.69,189.65,0.04035478]
[1739731787955,5.2718,189.66,189.65,0.04035478]
[1739731788452,0.03668595,189.69,189.6,10.80492128]
[1739731788646,211.16222128,189.73,189.6,10.80492128]
[1739731788861,194.0,189.72,189.6,10.80492128]
[1739731789357,5.2717,189.67,189.61,5.2731]
[1739731789557,0.03437997,189.66,189.61,5.2731]
[1739731790159,0.03437997,189.66,189.6,10.80492128]
[1739731790957,0.03437997,189.66,189.61,5.2729]
[1739731791353,0.03437997,189.66,189.6,10.80492128]
[1739731791658,0.03437997,189.66,189.62,5.2728]
[1739731793460,0.03437997,189.66,189.63,5.2726]
[1739731793959,0.03437997,189.66,189.6,10.80492128]
[1739731794157,0.03437997,189.66,189.65,5.2721]
[1739731796064,0.03437997,189.66,189.63,10.80492128]
[1739731796065,194.0,189.72,189.63,10.80492128]
[1739731796264,194.0,189.72,189.67,10.80492128]
[1739731796461,6.3573,189.73,189.67,10.80492128]
[1739731796662,6.3573,189.73,189.69,5.2707]
[1739731796859,6.3573,189.73,189.67,10.80492128]
[1739731797260,0.03913471,189.72,189.69,5.2709]
[1739731797966,0.03913471,189.72,189.68,0.0352304]
[1739731798564,0.03913471,189.72,189.68,5.3062304]
[1739731799161,0.03913471,189.72,189.68,0.0352304]
[1739731800068,5.2707,189.7,189.68,0.0352304]
[1739731800263,0.03913471,189.72,189.68,0.0352304]
[1739731800664,6.95549615,189.72,189.68,0.0352304]
[1739731801569,5.2707,189.7,189.68,0.0352304]
[1739731801867,0.03913471,189.72,189.68,0.0352304]
[1739731802062,0.03913471,189.72,189.68,6.95159184]
[1739731802668,0.03913471,189.72,189.7,6.91636144]
[1739731803969,0.03913471,189.72,189.71,5.2704]
[1739731804569,0.03913471,189.72,189.71,16.06606523]
[1739731807362,5.2686,189.78,189.72,5.2701]
[1739731807564,5.2688,189.77,189.71,10.79566523]
[1739731808173,5.2688,189.77,189.71,16.06606523]
[1739731808573,0.03999082,189.76,189.72,0.03631139]
[1739731809076,0.03999082,189.76,189.72,5.30641139]
[1739731809375,0.03999082,189.76,189.72,0.03631139]
[1739731809676,5.30899082,189.76,189.72,0.03631139]
[1739731809976,0.03999082,189.76,189.72,0.03631139]
[1739731810679,0.03999082,189.76,189.72,5.30631139]
[1739731811278,0.03999082,189.76,189.72,0.03631139]
[1739731811579,5.30899082,189.76,189.72,0.03631139]
[1739731811777,0.03999082,189.76,189.72,0.03631139]
[1739731811978,5.2698,189.73,189.72,0.03631139]
[1739731812276,0.03999082,189.76,189.65,10.79566523]
[1739731812479,6.5196,189.75,189.65,10.79566523]
[1739731813480,0.03555172,189.72,189.68,0.03583361]
[1739731814082,5.30585172,189.72,189.68,0.03583361]
[1739731814582,0.03555172,189.72,189.68,0.03583361]
[1739731814778,0.03555172,189.72,189.68,10.83149884]
[1739731814973,0.03555172,189.72,189.69,5.2709]
[1739731815780,0.03555172,189.72,189.68,10.83149884]
[1739731816485,5.2709,189.7,189.68,0.03583361]
[1739731817582,5.2709,189.69,189.68,0.03583361]
[1739731819480,0.03555172,189.72,189.68,0.03583361]
[1739731819682,5.2704,189.71,189.68,0.03583361]
[1739731820786,0.03555172,189.72,189.68,10.83149884]
[1739731821185,0.03555172,189.72,189.7,5.2705]
[1739731821579,0.03555172,189.72,189.68,10.83149884]
[1739731821783,0.03555172,189.72,189.71,16.06606523]
[1739731822283,63.11238794,189.79,189.74,5.2695]
[1739731822679,57.84418794,189.79,189.74,5.2695]
[1739731823082,57.84418794,189.79,189.71,10.79566523]
[1739731823283,57.84418794,189.79,189.73,5.2696]
[1739731823284,63.11238794,189.79,189.73,5.2696]
[1739731823485,0.03485491,189.77,189.73,5.30404827]
[1739731823984,0.03485491,189.77,189.73,0.03444827]
[1739731824488,5.2695,189.75,189.73,0.03444827]
[1739731824685,0.03485491,189.77,189.73,0.03444827]
[1739731825080,0.03485491,189.77,189.73,5.30424827]
[1739731825486,0.03485491,189.77,189.73,0.03444827]
[1739731825683,0.03485491,189.77,189.74,5.2693]
[1739731826189,0.03485491,189.77,189.73,0.03444827]
[1739731827482,0.03485491,189.77,189.74,10.79566523]
[1739731828290,0.03485491,189.77,189.76,5.269]
[1739731831092,0.03485491,189.77,189.74,10.79566523]
[1739731831093,5.267,189.84,189.79,5.2681]
[1739731831394,6.6072,189.86,189.78,10.79566523]
[1739731831588,5.267,189.84,189.78,10.79566523]
[1739731831785,6.6072,189.86,189.78,10.79566523]
[1739731832087,194.0,189.87,189.81,10.79566523]
[1739731832294,0.04010111,189.84,189.81,10.79566523]
[1739731835793,0.04010111,189.84,189.8,0.03620203]
[1739731836589,5.2676,189.81,189.8,0.03620203]
[1739731836795,6.6743,189.83,189.8,0.03620203]
[1739731837295,6.6743,189.83,189.75,10.79566523]
[1739731837793,5.2681,189.8,189.75,10.79566523]
[1739731837995,6.6743,189.83,189.72,10.79566523]
[1739731838501,0.03337532,189.79,189.76,0.03382323]
[1739731838995,5.2685,189.78,189.76,0.03382323]
[1739731839190,0.03337532,189.79,189.76,0.03382323]
[1739731839699,5.30177532,189.79,189.76,0.03382323]
[1739731840200,5.2685,189.78,189.76,0.03382323]
[1739731841097,0.03337532,189.79,189.76,0.03382323]
[1739731841401,0.03337532,189.79,189.78,10.79566523]
[1739731841899,0.03337532,189.79,189.78,16.06406523]
[1739731843903,8.5538,189.87,189.82,5.2671]
[1739731843904,3.2878,189.87,189.82,5.2671]
[1739731844807,5.2652,189.9,189.83,5.2668]
[1739731845003,6.1577,189.92,189.84,10.79566523]
[1739731845202,0.03750615,189.88,189.85,0.04040827]
[1739731846400,0.03750615,189.88,189.85,5.30690827]
[1739731846599,0.03750615,189.88,189.85,0.04040827]
[1739731847099,0.03750615,189.88,189.86,5.2662]
[1739731848104,330.43944445,190.02,189.87,10.79566523]
[1739731848304,60.90788794,189.99,189.91,10.79566523]
[1739731848794,60.90788794,189.99,189.94,5.2639]
[1739731848993,60.90788794,189.99,189.91,10.79566523]
[1739731849306,0.03578089,189.98,189.95,0.03776141]
[1739731852605,0.03578089,189.98,189.95,10.83342664]
[1739731853200,0.03578089,189.98,189.95,0.03776141]
[1739731856406,5.2633,189.97,189.95,0.03776141]
[1739731856806,0.03578089,189.98,189.95,0.03776141]
[1739731858596,0.03578089,189.98,189.91,10.79566523]
[1739731858801,0.03578089,189.98,189.88,10.79566523]
[1739731858999,5.2646,189.92,189.88,10.79566523]
[1739731859405,3.1968,190.0,189.88,10.79566523]
[1739731859601,5.2644,189.93,189.88,10.79566523]
[1739731859908,0.03840418,189.96,189.92,0.03454745]
[1739731860206,5.2643,189.94,189.92,0.03454745]
[1739731860408,0.03840418,189.96,189.92,0.03454745]
[1739731860805,5.2643,189.93,189.92,0.03454745]
[1739731861805,3.16,189.95,189.88,10.79566523]
[1739731862109,6.2253,189.95,189.85,10.79566523]
[1739731862609,10.79566523,189.94,189.82,10.79566523]
[1739731863007,5.2665,189.86,189.82,10.79566523]
[1739731863509,5.30145195,189.86,189.82,10.8336104]
[1739731863705,0.03495195,189.86,189.82,10.8336104]
[1739731866213,5.2665,189.85,189.82,10.8336104]
[1739731866410,0.03495195,189.86,189.82,10.8336104]
[1739731867911,5.30125195,189.86,189.82,10.8336104]
[1739731868113,0.03495195,189.86,189.82,0.03794517]
[1739731868517,5.2676,189.81,189.76,10.79566523]
[1739731868812,6.6163,189.85,189.72,10.79566523]
[1739731869816,5.2684,189.79,189.77,0.03993225]
[1739731870012,0.04015411,189.8,189.77,0.03993225]
[1739731870513,0.04015411,189.8,189.72,10.79566523]
[1739731871020,5.2694,189.75,189.72,10.79566523]
[1739731871217,0.04015411,189.8,189.69,10.79566523]
[1739731871417,5.2696,189.74,189.69,10.79566523]
[1739731871816,0.03552857,189.76,189.69,10.79566523]
[1739731872011,5.30472857,189.76,189.69,10.79566523]
[1739731872215,0.03552857,189.76,189.71,5.2704]
[1739731872417,0.03552857,189.76,189.72,10.79566523]
[1739731874916,0.03552857,189.76,189.72,16.06566523]
[1739731875512,0.03552857,189.76,189.72,10.79566523]
[1739731876118,0.03552857,189.76,189.72,16.06556523]
[1739731876820,0.03552857,189.76,189.73,5.2698]
[1739731877020,0.03552857,189.76,189.72,10.79566523]
[1739731878226,0.03552857,189.76,189.65,10.79566523]
[1739731878422,6.21,189.77,189.65,10.79566523]
[1739731878621,0.03831701,189.72,189.65,10.79566523]
[1739731879619,0.03831701,189.72,189.68,5.2712]
[1739731879822,0.03831701,189.72,189.65,10.79566523]
[1739731880120,0.03831701,189.72,189.63,10.79566523]
[1739731881222,5.2707,189.7,189.64,5.2721]
[1739731881423,5.2707,189.7,189.63,10.79566523]
[1739731881619,5.2706,189.71,189.65,5.272]
[1739731882020,0.03831701,189.72,189.63,10.79566523]
[1739731882419,0.03831701,189.72,189.65,5.272]
[1739731882619,0.03831701,189.72,189.63,10.79566523]
[1739731882825,0.03831701,189.72,189.67,5.2714]
[1739731883125,0.03831701,189.72,189.63,10.79566523]
[1739731883927,5.2709,189.69,189.63,16.06806523]
[1739731884624,0.03692024,189.68,189.64,5.2723]
[1739731885020,0.03692024,189.68,189.63,10.79566523]
[1739731885219,0.03692024,189.68,189.63,16.06806523]
[1739731887528,5.30832024,189.68,189.62,5.2728]
[1739731888230,5.30832024,189.68,189.6,10.79566523]
[1739731888529,5.30832024,189.68,189.63,5.2726]
[1739731889030,0.03692024,189.68,189.57,10.79566523]
[1739731889227,3.1407,189.67,189.57,10.79566523]
[1739731889427,3.3233,189.66,189.57,10.79566523]
[1739731889631,0.03724462,189.64,189.57,10.79566523]
[1739731891325,0.03724462,189.64,189.59,5.2737]
[1739731891629,5.30964462,189.64,189.59,5.2737]
[1739731893231,0.03724462,189.64,189.57,10.79566523]
[1739731893529,0.03724462,189.64,189.54,10.79566523]
[1739731894332,5.30984462,189.64,189.54,10.79566523]
[1739731894527,0.03724462,189.64,189.54,10.79566523]
[1739731894730,0.03724462,189.64,189.61,5.2729]
[1739731896133,5.30964462,189.64,189.57,10.79566523]
[1739731896330,5.30964462,189.64,189.53,118.24]
[1739731896331,0.03724462,189.64,189.54,10.79566523]
[1739731896533,0.03724462,189.64,189.55,5.2748]
[1739731896834,5.2729,189.62,189.54,10.79566523]
[1739731897035,3.3233,189.66,189.57,5.2742]
[1739731897238,0.0381572,189.6,189.57,5.2742]
[1739731897627,0.0381572,189.6,189.56,5.2745]
[1739731897831,0.0381572,189.6,189.54,10.79566523]
[1739731898225,5.3116572,189.6,189.55,5.2748]
[1739731898832,0.0381572,189.6,189.53,118.24]
[1739731899029,5.2741,189.58,189.52,5.2757]
[1739731899439,5.3118572,189.6,189.51,10.79566523]
[1739731900242,0.0381572,189.6,189.55,5.2747]
[1739731900638,0.0381572,189.6,189.51,10.79566523]
[1739731900839,0.0381572,189.6,189.54,10.79566523]
[1739731902338,0.0381572,189.6,189.51,10.79566523]
[1739731902839,5.3116572,189.6,189.53,5.2752]
[1739731903039,0.0381572,189.6,189.51,10.79566523]
[1739731903440,5.3116572,189.6,189.51,10.79566523]
[1739731903640,0.0381572,189.6,189.51,10.79566523]
[1739731903841,0.0381572,189.6,189.56,5.2744]
[1739731904040,0.0381572,189.6,189.54,10.79566523]
[1739731905240,5.274,189.59,189.54,10.79566523]
[1739731905945,5.2743,189.57,189.52,5.2756]
[1739731907148,5.3118572,189.6,189.53,5.2753]
[1739731907342,5.2737,189.6,189.53,5.2753]
[1739731907542,10.79566523,189.63,189.55,5.2748]
[1739731907543,0.03336258,189.58,189.55,5.2748]
[1739731907747,0.03336258,189.58,189.51,10.79566523]
[1739731908047,0.03336258,189.58,189.53,5.2754]
[1739731908245,0.03336258,189.58,189.51,10.79566523]
[1739731908739,0.03336258,189.58,189.53,5.2752]
[1739731908938,0.03336258,189.58,189.51,10.79566523]
[1739731909144,5.2751,189.54,189.49,5.2765]
[1739731909443,5.2751,189.54,189.48,10.79566523]
[1739731909640,0.03687696,189.53,189.48,10.79566523]
[1739731909847,5.31227696,189.53,189.48,5.2767]
[1739731910251,0.03687696,189.53,189.45,10.79566523]
[1739731910446,0.03687696,189.53,189.48,10.79566523]
[1739731911149,0.03687696,189.53,189.51,5.2758]
[1739731911350,0.03687696,189.53,189.48,10.79566523]
[1739731911951,0.03687696,189.53,189.51,5.2757]
[1739731912148,0.03687696,189.53,189.48,10.79566523]
[1739731912544,0.03687696,189.53,189.51,5.2758]
[1739731913049,0.03687696,189.53,189.48,10.79566523]
[1739731913651,0.03687696,189.53,189.52,5.2757]
[1739731915651,194.0,189.65,189.51,10.79566523]
[1739731915851,6.4469,189.64,189.54,10.79566523]
[1739731916248,6.4469,189.64,189.55,5.2746]
[1739731916452,6.4469,189.64,189.54,10.79566523]
[1739731916853,0.03389145,189.61,189.57,0.03374973]
[1739731917155,5.2739,189.59,189.57,0.03374973]
[1739731917354,0.03389145,189.61,189.57,0.03374973]
[1739731917756,5.2736,189.6,189.57,0.03374973]
[1739731918450,0.03389145,189.61,189.57,0.03374973]
[1739731919356,5.274,189.58,189.57,0.03374973]
[1739731922757,5.2752,189.54,189.48,10.79566523]
[1739731922958,5.2752,189.54,189.45,10.79566523]
[1739731923960,0.03887692,189.51,189.45,10.79566523]
[1739731924151,0.03887692,189.51,189.49,5.2763]
[1739731925360,0.03887692,189.51,189.5,5.2762]
[1739731925662,0.03887692,189.51,189.48,10.79566523]
[1739731925957,0.03887692,189.51,189.49,5.2764]
[1739731926363,0.03887692,189.51,189.48,10.79566523]
[1739731926556,0.03887692,189.51,189.5,5.2762]
[1739731927160,0.03887692,189.51,189.49,5.2764]
[1739731928262,0.03887692,189.51,189.48,10.79566523]
[1739731928457,0.03887692,189.51,189.45,10.79566523]
[1739731928666,0.03887692,189.51,189.42,129.09566523]
[1739731929262,5.2766,189.49,189.43,5.2781]
[1739731930066,0.03887692,189.51,189.42,10.79566523]
[1739731930361,3.3947,189.5,189.39,10.79566523]
[1739731930765,0.03486885,189.46,189.41,5.2785]
[1739731931167,0.03486885,189.46,189.44,5.2779]
[1739731931365,0.03486885,189.46,189.42,10.79566523]
[1739731932265,0.03486885,189.46,189.45,16.07326523]
[1739731932568,5.2753,189.54,189.45,10.79566523]
[1739731932963,5.2755,189.53,189.46,5.2773]
[1739731933267,3.3947,189.55,189.45,10.79566523]
[1739731933664,0.03642688,189.52,189.48,0.03333852]
[1739731935565,0.03642688,189.52,189.48,10.82900375]
[1739731935760,0.03642688,189.52,189.48,0.03333852]
[1739731936469,5.276,189.51,189.48,0.03333852]
[1739731936967,5.2765,189.49,189.48,0.03333852]
[1739731937664,5.2771,189.47,189.42,5.2784]
[1739731937963,14.17866523,189.51,189.39,10.79566523]
[1739731938269,14.17866523,189.51,189.4,5.279]
[1739731938468,10.79566523,189.51,189.39,10.79566523]
[1739731938671,10.79566523,189.51,189.43,5.2779]
[1739731938966,0.03481228,189.47,189.43,5.2779]
[1739731939162,0.03481228,189.47,189.39,10.79566523]
[1739731940161,0.03481228,189.47,189.44,5.2777]
[1739731940573,0.03481228,189.47,189.42,10.79566523]
[1739731940769,0.03481228,189.47,189.46,5.2773]
[1739731940969,3.3947,189.55,189.45,10.79566523]
[1739731942064,0.03807437,189.52,189.48,0.03625258]
[1739731942270,0.03807437,189.52,189.49,5.2763]
[1739731943470,0.03807437,189.52,189.48,5.31305258]
[1739731944371,0.03807437,189.52,189.48,0.03625258]
[1739731944572,0.03807437,189.52,189.49,5.2765]
[1739731945371,0.03807437,189.52,189.48,0.03625258]
[1739731945566,0.03807437,189.52,189.5,5.2762]
[1739731946163,0.03807437,189.52,189.49,5.2765]
[1739731946573,0.03807437,189.52,189.48,0.03625258]
[1739731946871,0.03807437,189.52,189.49,5.2765]
[1739731947472,0.03807437,189.52,189.48,0.03625258]
[1739731947473,0.03807437,189.52,189.5,5.2761]
[1739731947872,0.03807437,189.52,189.48,0.03625258]
[1739731948073,0.03807437,189.52,189.5,5.2762]
[1739731949273,0.03807437,189.52,189.51,5.276]
[1739731950075,0.03807437,189.52,189.48,0.03625258]
[1739731950673,5.2765,189.49,189.48,0.03625258]
[1739731951782,5.2763,189.5,189.48,0.03625258]
[1739731951981,0.03807437,189.52,189.48,0.03625258]
[1739731952883,5.2762,189.51,189.48,0.03625258]
[1739731953685,0.03807437,189.52,189.48,0.03625258]
[1739731953886,5.2763,189.5,189.48,0.03625258]
[1739731956085,5.2765,189.49,189.48,0.03625258]
[1739731956779,0.03807437,189.52,189.42,16.07396523]
[1739731956780,5.2771,189.47,189.42,5.2783]
[1739731956981,3.1952,189.51,189.39,10.79566523]
[1739731957280,3.1952,189.51,189.45,5.2776]
[1739731957481,5.2764,189.5,189.45,5.2776]
[1739731957676,3.1952,189.51,189.45,5.2776]
[1739731957875,0.03550915,189.49,189.45,5.2776]
[1739731958385,0.03550915,189.49,189.39,10.79566523]
[1739731958685,5.2768,189.48,189.42,5.2782]
[1739731958884,5.2768,189.48,189.39,10.79566523]
[1739731959086,5.2768,189.48,189.43,5.2779]
[1739731959686,5.2773,189.47,189.39,10.79566523]
[1739731959984,3.1952,189.51,189.39,10.79566523]
[1739731960281,0.04016749,189.45,189.39,10.79566523]
[1739731960492,0.04016749,189.45,189.43,5.2782]
[1739731962786,0.04016749,189.45,189.39,10.79566523]
[1739731963087,0.04016749,189.45,189.36,10.79566523]
[1739731963279,5.31786749,189.45,189.39,5.2792]
[1739731963484,0.04016749,189.45,189.39,5.2792]
[1739731963684,0.04016749,189.45,189.36,10.79566523]
[1739731964587,5.2784,189.43,189.38,5.2794]
[1739731964987,0.04016749,189.45,189.36,10.79566523]
[1739731965292,5.2787,189.42,189.36,16.07556523]
[1739731965488,0.04016749,189.45,189.36,10.79566523]
[1739731965686,6.5484,189.47,189.36,10.79566523]
[1739731965893,5.3184548,189.42,189.37,5.2797]
[1739731966693,5.2789,189.41,189.33,10.79566523]
[1739731967200,0.03870355,189.39,189.35,5.2804]
[1739731967397,0.03870355,189.39,189.33,10.79566523]
[1739731968699,0.03870355,189.39,189.37,5.2797]
[1739731968900,0.03870355,189.39,189.33,10.79566523]
[1739731970201,0.03870355,189.39,189.38,5.2796]
[1739731972305,0.03870355,189.39,189.36,10.79566523]
[1739731972806,0.03870355,189.39,189.37,5.2796]
[1739731974604,0.03870355,189.39,189.37,12.21514839]
[1739731975208,0.03870355,189.39,189.37,6.93554839]
[1739731975707,0.03870355,189.39,189.37,12.21534839]
[1739731975905,0.03870355,189.39,189.37,6.93554839]
[1739731977504,0.03870355,189.39,189.36,5.2799]
[1739731980909,0.03870355,189.39,189.33,6.93554839]
[1739731980910,6.97425194,189.39,189.33,6.93554839]
[1739731981101,6.93554839,189.39,189.31,6.93554839]
[1739731981305,0.03479808,189.38,189.31,12.21684839]
[1739731981505,0.03479808,189.38,189.31,6.93554839]
[1739731981709,5.31459808,189.38,189.31,6.93554839]
[1739731981910,5.31459808,189.38,189.32,5.2812]
[1739731982607,5.31459808,189.38,189.33,5.281]
[1739731983005,0.03479808,189.38,189.33,6.93554839]
[1739731983211,0.03479808,189.38,189.35,5.2804]
[1739731983411,0.03479808,189.38,189.35,6.93554839]
[1739731984313,0.03479808,189.38,189.37,12.21544839]
[1739731985609,0.03479808,189.38,189.37,6.93554839]
[1739731985810,0.03479808,189.38,189.35,6.93554839]
[1739731988913,5.28,189.37,189.33,6.93554839]
[1739731989312,0.03479808,189.38,189.33,6.93554839]
[1739731990218,0.03479808,189.38,189.35,6.93554839]
[1739731990809,0.03479808,189.38,189.33,6.93554839]
[1739731991014,5.31459808,189.38,189.33,6.93554839]
[1739731991214,0.03479808,189.38,189.33,6.93554839]
[1739731991415,6.93554839,189.37,189.31,6.93554839]
[1739731991617,6.93554839,189.35,189.29,6.93554839]
[1739731992018,0.03365153,189.34,189.29,6.93554839]
[1739731993724,5.281,189.33,189.29,6.93554839]
[1739731994223,0.03365153,189.34,189.29,6.93554839]
[1739731994420,5.31455153,189.34,189.29,6.93554839]
[1739731994626,0.03365153,189.34,189.29,12.21744839]
[1739731994819,0.03365153,189.34,189.31,6.93554839]
[1739731998321,0.03365153,189.34,189.31,12.21684839]
[1739731999428,0.03365153,189.34,189.32,5.2812]
[1739731999727,0.03365153,189.34,189.33,6.93554839]
[1739732000526,0.03365153,189.34,189.31,6.93554839]
[1739732004236,0.03365153,189.34,189.29,6.93554839]
[1739732004427,5.281,189.33,189.29,6.93554839]
[1739732006435,5.2813,189.32,189.29,6.93554839]
[1739732007836,5.2813,189.32,189.27,12.21814839]
[1739732008236,0.03365153,189.34,189.3,5.2817]
[1739732008536,6.93554839,189.37,189.31,6.93554839]
[1739732008731,0.03531434,189.34,189.31,6.93554839]
[1739732009629,0.03531434,189.34,189.31,12.21694839]
[1739732011032,0.03531434,189.34,189.33,6.93554839]
[1739732011235,3.3075,189.39,189.33,12.21654839]
[1739732011531,0.03594002,189.35,189.33,6.93554839]
[1739732011733,0.03594002,189.35,189.31,6.93554839]
[1739732011938,6.93554839,189.37,189.29,6.93554839]
[1739732012131,0.03631629,189.35,189.29,6.93554839]
[1739732012335,5.2807,189.34,189.3,5.2818]
[1739732013234,5.281,189.33,189.29,12.21764839]
[1739732016742,5.281,189.33,189.29,6.93554839]
[1739732017641,0.03631629,189.35,189.29,12.21754839]
[1739732017842,0.03631629,189.35,189.29,6.93554839]
[1739732018143,5.2809,189.34,189.3,5.2818]
[1739732018745,0.03631629,189.35,189.29,6.93554839]
[1739732018940,5.281,189.33,189.29,12.21764839]
[1739732019942,0.03631629,189.35,189.3,5.2817]
[1739732020837,0.03631629,189.35,189.31,6.93554839]
[1739732021034,10.24304839,189.39,189.33,6.93554839]
[1739732021237,0.03367366,189.35,189.33,6.93554839]
[1739732022640,0.03367366,189.35,189.33,12.21644839]
[1739732023744,0.03367366,189.35,189.33,6.93554839]
[1739732025543,0.03367366,189.35,189.32,5.2812]
[1739732026244,0.03367366,189.35,189.33,12.21644839]
[1739732026636,0.03367366,189.35,189.33,6.93554839]
[1739732031850,0.03367366,189.35,189.31,12.21704839]
[1739732034047,0.03367366,189.35,189.31,6.93554839]
[1739732034549,0.03367366,189.35,189.31,12.21684839]